fUSD/lending_fUSD_20250814
["ID","MTS","AMOUNT","RATE_DAILY","PERIOD"]
[379175966,1755178236549,-2585.69,0.00027397,2]
[379175967,1755178236558,-400.0,0.00027397,2]
[379175968,1755178236568,-400.0,0.00027397,2]
[379175969,1755178236578,-400.0,0.00027397,2]
[379175970,1755178236587,-400.0,0.00027397,2]
[379175971,1755178236597,-400.0,0.00027397,2]
[379175972,1755178236606,-3002.7,0.00027397,2]
[379175973,1755178236615,-400.0,0.00027397,2]
[379175974,1755178236625,-1446.52,0.00027397,2]
[379175975,1755178236634,-400.0,0.00027397,2]
[379175976,1755178236643,-1809.25,0.00027397,2]
[379175977,1755178236652,-2920.21,0.00027397,2]
[379175978,1755178236661,-1112.87,0.00027397,2]
[379175979,1755178236671,-591.96,0.00027397,2]
[379175980,1755178236680,-2523.97,0.00027397,2]
[379175981,1755178236689,-4510.49,0.00027397,2]
[379175982,1755178236699,-5282.96,0.00027397,2]
[379175983,1755178236709,-400.0,0.00027397,2]
[379175984,1755178236718,-400.0,0.00027397,2]
[379175985,1755178236728,-2983.36,0.00027397,2]
[379175986,1755178236737,-894.0,0.00027397,2]
[379175987,1755178236747,-400.0,0.00027397,2]
[379175988,1755178236756,-400.0,0.00027397,2]
[379175989,1755178236765,-3460.96,0.00027397,2]
[379175990,1755178236775,-400.0,0.00027397,2]
[379175991,1755178236784,-460.11,0.00027397,2]
[379175992,1755178236793,-228.45769924,0.00027397,2]
[379175993,1755178236803,-400.0,0.00027397,2]
[379175994,1755178236812,-400.0,0.00027397,2]
[379175995,1755178236821,-3188.75,0.00027397,2]
[379175996,1755178236831,-400.0,0.00027397,2]
[379175997,1755178236840,-5402.52,0.00027397,2]
[379175998,1755178236849,-270.17554402,0.00027397,2]
[379175999,1755178236859,-400.0,0.00027397,2]
[379176000,1755178236868,-400.0,0.00027397,2]
[379176001,1755178236877,-1227.95,0.00027397,2]
[379176002,1755178236887,-2080.78,0.00027397,2]
[379176003,1755178236897,-400.0,0.00027397,2]
[379176004,1755178236906,-500.0,0.00027397,2]
[379176005,1755178236915,-2682.83,0.00027397,2]
[379176006,1755178236925,-400.0,0.00027397,2]
[379176007,1755178236935,-5323.19,0.00027397,2]
[379176008,1755178236944,-705.44,0.00027397,2]
[379176009,1755178236954,-400.0,0.00027397,2]
[379176010,1755178236964,-400.0,0.00027397,2]
[379176011,1755178236976,-3521.61,0.00027397,2]
[379176012,1755178236986,-785.29,0.00027397,2]
[379176013,1755178236995,-1669.05,0.00027397,2]
[379176014,1755178237005,-3093.58,0.00027397,2]
[379176015,1755178237014,-400.0,0.00027397,2]
[379176016,1755178237023,-400.0,0.00027397,2]
[379176017,1755178237033,-3995.74,0.00027397,2]
[379176018,1755178237042,-5119.26,0.00027397,2]
[379176019,1755178237053,-2561.2,0.00027397,2]
[379176020,1755178237063,-400.0,0.00027397,2]
[379176021,1755178237072,-400.0,0.00027397,2]
[379176022,1755178237081,-402.83835096,0.00027397,2]
[379176023,1755178237090,-1347.655785,0.00027397,2]
[379176024,1755178237099,-400.0,0.00027397,2]
[379176025,1755178237109,-2766.8,0.00027397,2]
[379176026,1755178237119,-3803.08,0.00027397,2]
[379176027,1755178237128,-400.0,0.00027397,2]
[379176028,1755178237137,-2033.2,0.00027397,2]
[379176029,1755178237147,-2247.60654,0.00027397,2]
[379176030,1755178237156,-400.0,0.00027397,2]
[379176031,1755178237165,-400.0,0.00027397,2]
[379176032,1755178237174,-254.325724,0.00027397,2]
[379176033,1755178237184,-3618.52,0.00027397,2]
[379176034,1755178237193,-400.0,0.00027397,2]
[379176035,1755178237202,-400.0,0.00027397,2]
[379176036,1755178237212,-1169.56,0.00027397,2]
[379176037,1755178237221,-400.0,0.00027397,2]
[379176038,1755178237232,-400.0,0.00027397,2]
[379176039,1755178237242,-377.94631595,0.00027397,2]
[379176040,1755178237252,-1375.81,0.00027397,2]
[379176041,1755178237261,-400.0,0.00027397,2]
[379176042,1755178237270,-500.0,0.00027397,2]
[379176043,1755178237279,-1078.57,0.00027397,2]
[379176044,1755178237290,-400.0,0.00027397,2]
[379176045,1755178237299,-400.0,0.00027397,2]
[379176046,1755178237309,-1736.49,0.00027397,2]
[379176047,1755178237318,-400.0,0.00027397,2]
[379176048,1755178237328,-1736.49,0.00027397,2]
[379176049,1755178237337,-1736.49,0.00027397,2]
[379176050,1755178237347,-4579.53,0.00027397,2]
[379176051,1755178237357,-2606.6,0.00027397,2]
[379176052,1755178237367,-400.0,0.00027397,2]
[379176053,1755178237376,-1958.715724,0.00027397,2]
[379176054,1755178237385,-2369.25,0.00027397,2]
[379176055,1755178237395,-2909.22,0.00027397,2]
[379176056,1755178237404,-6062.73,0.00027397,2]
[379176057,1755178237413,-1499.74,0.00027397,2]
[379176058,1755178237423,-400.0,0.00027397,2]
[379176059,1755178237433,-1548.97,0.00027397,2]
[379176060,1755178237442,-150.670127,0.00027397,2]
[379176061,1755178237451,-2223.12,0.00027397,2]
[379176062,1755178237460,-400.0,0.00027397,2]
[379176063,1755178237470,-160.512608,0.00027397,2]
[379176064,1755178237482,-2071.97,0.00027397,2]
[379176065,1755178237492,-608.65,0.00027397,2]
[379176066,1755178237501,-1696.13,0.00027397,2]
[379176067,1755178237511,-500.0,0.00027397,2]
[379176068,1755178237521,-1695.9,0.00027397,2]
[379176069,1755178237530,-400.0,0.00027397,2]
[379176070,1755178237539,-500.0,0.00027397,2]
[379176071,1755178237549,-500.0,0.00027397,2]
[379176072,1755178237558,-4141.09,0.00027397,2]
[379176073,1755178237567,-2645.31,0.00027397,2]
[379176074,1755178237577,-250.0,0.00027397,2]
[379176075,1755178237586,-5431.6,0.00027397,2]
[379176076,1755178237595,-500.0,0.00027397,2]
[379176077,1755178237605,-400.0,0.00027397,2]
[379176078,1755178237614,-150.0,0.00027397,2]
[379176079,1755178237623,-400.0,0.00027397,2]
[379176080,1755178237632,-150.45686372,0.00027397,2]
[379176081,1755178237642,-500.0,0.00027397,2]
[379176082,1755178237651,-400.0,0.00027397,2]
[379176083,1755178237660,-3680.12,0.00027397,2]
[379176084,1755178237669,-2618.1,0.00027397,2]
[379176085,1755178237679,-400.0,0.00027397,2]
[379176086,1755178237688,-2881.28,0.00027397,2]
[379176087,1755178237697,-400.0,0.00027397,2]
[379176088,1755178237707,-827.59,0.00027397,2]
[379176089,1755178237716,-4120.33,0.00027397,2]
[379176090,1755178237726,-1564.01,0.00027397,2]
[379176091,1755178237736,-400.0,0.00027397,2]
[379176092,1755178237745,-150.0,0.00027397,2]
[379176093,1755178237754,-400.0,0.00027397,2]
[379176094,1755178237765,-500.0,0.00027397,2]
[379176095,1755178237774,-3348.54,0.00027397,2]
[379176096,1755178237784,-400.0,0.00027397,2]
[379176097,1755178237794,-150.0,0.00027397,2]
[379176098,1755178237803,-400.0,0.00027397,2]
[379176099,1755178237812,-2508.89,0.00027397,2]
[379176100,1755178237822,-400.0,0.00027397,2]
[379176101,1755178237831,-500.0,0.00027397,2]
[379176102,1755178237840,-3115.72,0.00027397,2]
[379176103,1755178237850,-400.0,0.00027397,2]
[379176104,1755178237859,-400.0,0.00027397,2]
[379176105,1755178237869,-2713.99,0.00027397,2]
[379176106,1755178237879,-500.0,0.00027397,2]
[379176107,1755178237888,-1823.8,0.00027397,2]
[379176108,1755178237898,-400.0,0.00027397,2]
[379176110,1755178237908,-150.0,0.00027397,2]
[379176112,1755178237917,-150.0,0.00027397,2]
[379176114,1755178237926,-400.0,0.00027397,2]
[379176115,1755178237935,-150.0,0.00027397,2]
[379176117,1755178237944,-150.0,0.00027397,2]
[379176118,1755178237954,-150.0,0.00027397,2]
[379176119,1755178237964,-400.0,0.00027397,2]
[379176120,1755178237977,-2993.95,0.00027397,2]
[379176121,1755178237987,-627.88,0.00027397,2]
[379176122,1755178237996,-2215.81,0.00027397,2]
[379176123,1755178238007,-400.0,0.00027397,2]
[379176125,1755178238016,-4360.09,0.00027397,2]
[379176126,1755178238025,-3516.29,0.00027397,2]
[379176127,1755178238034,-3131.85,0.00027397,2]
[379176128,1755178238044,-1756.4,0.00027397,2]
[379176129,1755178238053,-210.83314306,0.00027397,2]
[379176130,1755178238062,-400.0,0.00027397,2]
[379176131,1755178238071,-400.0,0.00027397,2]
[379176132,1755178238081,-400.0,0.00027397,2]
[379176133,1755178238091,-1931.38,0.00027397,2]
[379176134,1755178238100,-400.0,0.00027397,2]
[379176135,1755178238110,-811.3,0.00027397,2]
[379176136,1755178238119,-1131.28,0.00027397,2]
[379176137,1755178238129,-811.3,0.00027397,2]
[379176138,1755178238139,-811.3,0.00027397,2]
[379176139,1755178238149,-569.88,0.00027397,2]
[379176140,1755178238159,-150.0,0.00027397,2]
[379176141,1755178238168,-400.0,0.00027397,2]
[379176142,1755178238178,-400.0,0.00027397,2]
[379176143,1755178238187,-3565.81,0.00027397,2]
[379176144,1755178238496,-2035.66,0.00027397,2]
[379176145,1755178238506,-400.0,0.00027397,2]
[379176146,1755178238517,-400.0,0.00027397,2]
[379176147,1755178238526,-537.96,0.00027397,2]
[379176148,1755178238536,-150.0,0.00027397,2]
[379176149,1755178238545,-400.0,0.00027397,2]
[379176150,1755178238554,-1949.81,0.00027397,2]
[379176151,1755178238564,-400.0,0.00027397,2]
[379176152,1755178238573,-400.0,0.00027397,2]
[379176154,1755178238583,-2705.13,0.00027397,2]
[379176156,1755178238593,-400.0,0.00027397,2]
[379176157,1755178238602,-500.0,0.00027397,2]
[379176158,1755178238612,-436.94,0.00027397,2]
[379176159,1755178238621,-441.31,0.00027397,2]
[379176160,1755178238631,-400.0,0.00027397,2]
[379176161,1755178238640,-2601.43,0.00027397,2]
[379176162,1755178238650,-400.0,0.00027397,2]
[379176163,1755178238667,-5897.19,0.00027397,2]
[379176164,1755178238686,-400.0,0.00027397,2]
[379176165,1755178238699,-400.0,0.00027397,2]
[379176166,1755178238709,-2536.67,0.00027397,2]
[379176167,1755178238719,-3896.37,0.00027397,2]
[379176168,1755178238731,-2982.14,0.00027397,2]
[379176169,1755178238741,-500.01,0.00027397,2]
[379176170,1755178238751,-400.0,0.00027397,2]
[379176171,1755178238760,-7713.46,0.00027397,2]
[379176172,1755178238770,-2906.64,0.00027397,2]
[379176173,1755178238779,-4162.85,0.00027397,2]
[379176174,1755178238789,-400.0,0.00027397,2]
[379176175,1755178238799,-3011.66,0.00027397,2]
[379176176,1755178238808,-400.0,0.00027397,2]
[379176177,1755178238818,-400.0,0.00027397,2]
[379176178,1755178238827,-3233.9,0.00027397,2]
[379176179,1755178238837,-3010.16,0.00027397,2]
[379176180,1755178238847,-400.0,0.00027397,2]
[379176181,1755178238857,-1411.3,0.00027397,2]
[379176182,1755178238867,-400.0,0.00027397,2]
[379176183,1755178238877,-714.44,0.00027397,2]
[379176184,1755178238887,-400.0,0.00027397,2]
[379176185,1755178238897,-3958.82,0.00027397,2]
[379176186,1755178238907,-400.0,0.00027397,2]
[379176187,1755178238916,-734.11868666,0.00027397,2]
[379176189,1755178240051,-530.06131334,0.00027397,2]
[379176190,1755178240061,-5426.43868666,0.00027397,2]
[379176191,1755178240112,-379.0,0.00027397,2]
[379176192,1755178240124,-1680.16,0.00027397,2]
[379176193,1755178240135,-872.925,0.00027397,2]
[379176194,1755178240151,-5857.87631334,0.00027397,2]
[379176195,1755178240161,-7064.1,0.00027397,2]
[379176196,1755178240172,-1518.25,0.00027397,2]
[379176197,1755178240182,-400.0,0.00027397,2]
[379176198,1755178240191,-3136.86,0.00027397,2]
[379176199,1755178240201,-14190.43,0.00027397,2]
[379176200,1755178240211,-400.0,0.00027397,2]
[379176201,1755178240221,-3094.12,0.00027397,2]
[379176202,1755178240232,-2576.04,0.00027397,2]
[379176203,1755178240242,-400.0,0.00027397,2]
[379176204,1755178240252,-1590.72,0.00027397,2]
[379176205,1755178240262,-400.0,0.00027397,2]
[379176206,1755178240271,-504.80564538,0.00027397,2]
[379176207,1755178240281,-840.6,0.00027397,2]
[379176208,1755178240290,-400.0,0.00027397,2]
[379176209,1755178240300,-6013.81,0.00027397,2]
[379176210,1755178240309,-1093.89,0.00027397,2]
[379176211,1755178240319,-1093.89,0.00027397,2]
[379176212,1755178240328,-1093.89,0.00027397,2]
[379176213,1755178240338,-1741.3,0.00027397,2]
[379176214,1755178240348,-1093.89,0.00027397,2]
[379176220,1755178240498,-801.86,0.00027397,2]
[379176222,1755178240508,-9558.01,0.00027397,2]
[379176223,1755178240517,-155.928975,0.00027397,2]
[379176224,1755178240527,-3044.94,0.00027397,2]
[379176226,1755178240536,-3505.08,0.00027397,2]
[379176229,1755178240546,-400.0,0.00027397,2]
[379176231,1755178240555,-400.0,0.00027397,2]
[379176233,1755178240565,-4064.9,0.00027397,2]
[379176236,1755178240574,-2279.39,0.00027397,2]
[379176238,1755178240583,-2622.81,0.00027397,2]
[379176240,1755178240593,-400.0,0.00027397,2]
[379176242,1755178240603,-500.0,0.00027397,2]
[379176244,1755178240612,-489.64,0.00027397,2]
[379176246,1755178240621,-400.0,0.00027397,2]
[379176248,1755178240630,-3761.13,0.00027397,2]
[379176250,1755178240640,-400.0,0.00027397,2]
[379176252,1755178240649,-5221.68,0.00027397,2]
[379176254,1755178240658,-2647.79,0.00027397,2]
[379176256,1755178240668,-500.0,0.00027397,2]
[379176258,1755178240678,-4115.14,0.00027397,2]
[379176260,1755178240687,-5170.18,0.00027397,2]
[379176262,1755178240697,-400.0,0.00027397,2]
[379176264,1755178240707,-452.77,0.00027397,2]
[379176266,1755178240716,-769.5,0.00027397,2]
[379176268,1755178240727,-315.40181519,0.00027397,2]
[379176270,1755178240737,-13130.29,0.00027397,2]
[379176272,1755178240746,-3349.16492179,0.00027397,2]
[379176276,1755178240768,-491.96000004,0.00027397,2]
[379176280,1755178240815,-16645.64507817,0.00027397,2]
[379176281,1755178240825,-5298.09,0.00027397,2]
[379176282,1755178240834,-797.18,0.00027397,2]
[379176284,1755178240844,-1077.08492183,0.00027397,2]
[379176350,1755178243749,-601.1470106,0.00019535,2]
[379176352,1755178243759,-844.53,0.00022215,2]
[379176353,1755178243769,-458.13769775,0.0002451,30]
[379176354,1755178243780,-7889.13350564,0.00026295,2]
[379176355,1755178243791,-7889.13350564,0.00026614,2]
[379176356,1755178243802,-467.58507817,0.00027397,2]
[379176357,1755178243812,-400.0,0.00027397,2]
[379176358,1755178243823,-400.0,0.00027397,2]
[379176359,1755178243833,-8208.39,0.00027397,2]
[379176360,1755178243843,-6535.87,0.00027397,2]
[379176361,1755178243853,-5931.17,0.00027397,2]
[379176363,1755178243862,-758.59,0.00027397,2]
[379176364,1755178243872,-758.59,0.00027397,2]
[379176365,1755178243882,-400.0,0.00027397,2]
[379176366,1755178243892,-758.59,0.00027397,2]
[379176367,1755178243902,-6985.88,0.00027397,2]
[379176368,1755178243912,-4516.57,0.00027397,2]
[379176369,1755178243922,-400.0,0.00027397,2]
[379176370,1755178243932,-4972.31,0.00027397,2]
[379176371,1755178243942,-400.0,0.00027397,2]
[379176372,1755178243952,-67.71721421,0.00027397,2]
[379176373,1755178243965,-1676.28271343,0.00027397,2]
[379176374,1755178243982,-1826.17002394,0.00027397,2]
[379176375,1755178243994,-1162.79533573,0.00027397,2]
[379176376,1755178244129,-532.57329146,0.00027397,2]
[379176377,1755178244182,-1030.106556,0.00027397,2]
[379176378,1755178244195,-2654.766821,0.00027397,2]
[379176379,1755178244208,-1929.9620314,0.00027397,2]
[379176380,1755178244220,-1557.09999,0.00027397,2]
[379176381,1755178244236,-5334.3,0.00027397,2]
[379176382,1755178244248,-4541.41568367,0.00027397,2]
[379176383,1755178244261,-2780.25,0.00027397,2]
[379176384,1755178244335,-740.38267168,0.00027397,2]
[379176385,1755178244352,-204.95766748,0.00027397,2]
[379176386,1755178244363,-400.0,0.00027397,2]
[379176387,1755178244374,-400.0,0.00027397,2]
[379176388,1755178244384,-354.28233253,0.00027397,2]
[379176389,1755178244495,-45.71766747,0.00027397,2]
[379176390,1755178244505,-400.0,0.00027397,2]
[379176391,1755178244516,-400.0,0.00027397,2]
[379176392,1755178244526,-7561.21,0.00027397,2]
[379176393,1755178244537,-400.0,0.00027397,2]
[379176394,1755178244547,-500.0,0.00027397,2]
[379176395,1755178244558,-852.27,0.00027397,2]
[379176396,1755178244568,-8987.94,0.00027397,2]
[379176397,1755178244578,-545.1,0.00027397,2]
[379176398,1755178244588,-3162.76233238,0.00027397,2]
[379176399,1755178245382,-2718.55766762,0.00027397,2]
[379176400,1755178245392,-852.04233238,0.00027397,2]
[379176401,1755178245408,-525.25437052,0.00027397,2]
[379176402,1755178245420,-1398.71288197,0.00027397,2]
[379176403,1755178245693,-2873.40041513,0.00027397,2]
[379176404,1755178245704,-2649.47,0.00027397,2]
[379176405,1755178245714,-8856.53806174,0.00027397,2]
[379176406,1755178245727,-2333.08193826,0.00027397,2]
[379176407,1755178245743,-400.0,0.00027397,2]
[379176408,1755178245753,-435.54,0.00027397,2]
[379176409,1755178245763,-4165.72,0.00027397,2]
[379176410,1755178245773,-400.0,0.00027397,2]
[379176411,1755178245783,-400.0,0.00027397,2]
[379176412,1755178245793,-400.0,0.00027397,2]
[379176413,1755178245804,-189.13207965,0.00027397,2]
[379176414,1755178245814,-400.0,0.00027397,2]
[379176415,1755178245824,-3667.39,0.00027397,2]
[379176416,1755178245834,-400.0,0.00027397,2]
[379176417,1755178245844,-400.0,0.00027397,2]
[379176418,1755178245854,-7850.05,0.00027397,2]
[379176419,1755178245864,-3514.92,0.00027397,2]
[379176420,1755178245873,-3442.35,0.00027397,2]
[379176421,1755178245883,-3811.53,0.00027397,2]
[379176422,1755178245893,-400.0,0.00027397,2]
[379176423,1755178245902,-10040.0,0.00027397,2]
[379176424,1755178245912,-400.0,0.00027397,2]
[379176425,1755178245921,-400.0,0.00027397,2]
[379176426,1755178245931,-400.0,0.00027397,2]
[379176427,1755178245940,-400.0,0.00027397,2]
[379176428,1755178245951,-4570.62,0.00027397,2]
[379176429,1755178245960,-3669.08,0.00027397,2]
[379176430,1755178245971,-400.0,0.00027397,2]
[379176432,1755178245989,-3677.46,0.00027397,2]
[379176434,1755178245999,-2477.46,0.00027397,2]
[379176436,1755178246009,-7712.25,0.00027397,2]
[379176438,1755178246019,-400.0,0.00027397,2]
[379176440,1755178246029,-7209.35,0.00027397,2]
[379176442,1755178246039,-400.0,0.00027397,2]
[379176444,1755178246050,-7870.42,0.00027397,2]
[379176446,1755178246060,-2006.87,0.00027397,2]
[379176448,1755178246069,-264.882659,0.00027397,2]
[379176450,1755178246079,-400.0,0.00027397,2]
[379176452,1755178246088,-400.0,0.00027397,2]
[379176455,1755178246098,-400.0,0.00027397,2]
[379176457,1755178246108,-400.0,0.00027397,2]
[379176459,1755178246118,-400.0,0.00027397,2]
[379176461,1755178246128,-842.76,0.00027397,2]
[379176463,1755178246138,-400.0,0.00027397,2]
[379176465,1755178246148,-5649.96,0.00027397,2]
[379176467,1755178246157,-5952.51,0.00027397,2]
[379176469,1755178246167,-2057.48,0.00027397,2]
[379176471,1755178246176,-400.0,0.00027397,2]
[379176473,1755178246185,-400.0,0.00027397,2]
[379176475,1755178246195,-984.95,0.00027397,2]
[379176512,1755178246593,-1020.48,0.00027397,2]
[379176516,1755178246613,-400.0,0.00027397,2]
[379176518,1755178246624,-593.62,0.00027397,2]
[379176520,1755178246633,-400.0,0.00027397,2]
[379176522,1755178246643,-8028.24,0.00027397,2]
[379176524,1755178246654,-400.0,0.00027397,2]
[379176526,1755178246663,-4620.6,0.00027397,2]
[379176528,1755178246673,-400.0,0.00027397,2]
[379176530,1755178246683,-500.0,0.00027397,2]
[379176532,1755178246693,-400.0,0.00027397,2]
[379176534,1755178246703,-400.0,0.00027397,2]
[379176536,1755178246713,-4039.97,0.00027397,2]
[379176538,1755178246723,-400.0,0.00027397,2]
[379176540,1755178246735,-3289.74,0.00027397,2]
[379176543,1755178246746,-2221.32,0.00027397,2]
[379176546,1755178246756,-400.0,0.00027397,2]
[379176549,1755178246767,-308.58213457,0.00027397,2]
[379176552,1755178246777,-9933.02,0.00027397,2]
[379176555,1755178246787,-400.0,0.00027397,2]
[379176558,1755178246797,-14561.46,0.00027397,2]
[379176561,1755178246806,-5974.98,0.00027397,2]
[379176564,1755178246816,-400.0,0.00027397,2]
[379176567,1755178246825,-6194.51,0.00027397,2]
[379176570,1755178246835,-716.85,0.00027397,2]
[379176573,1755178246844,-400.0,0.00027397,2]
[379176576,1755178246854,-5978.02,0.00027397,2]
[379176579,1755178246864,-400.0,0.00027397,2]
[379176583,1755178246875,-1040.0,0.00027397,2]
[379176585,1755178246885,-400.0,0.00027397,2]
[379176589,1755178246895,-8231.64,0.00027397,2]
[379176592,1755178246905,-6228.51,0.00027397,2]
[379176595,1755178246914,-400.0,0.00027397,2]
[379176598,1755178246924,-400.0,0.00027397,2]
[379176601,1755178246933,-5925.0,0.00027397,2]
[379176604,1755178246943,-2296.25,0.00027397,2]
[379176606,1755178246954,-400.0,0.00027397,2]
[379176609,1755178246965,-18586.09,0.00027397,2]
[379176612,1755178246976,-400.0,0.00027397,2]
[379176614,1755178246992,-5344.89,0.00027397,2]
[379176616,1755178247002,-4340.9,0.00027397,2]
[379176618,1755178247012,-500.0,0.00027397,2]
[379176620,1755178247022,-19481.05,0.00027397,2]
[379176622,1755178247031,-8979.25,0.00027397,2]
[379176624,1755178247041,-12710.28,0.00027397,2]
[379176626,1755178247051,-500.0,0.00027397,2]
[379176628,1755178247061,-400.0,0.00027397,2]
[379176630,1755178247071,-400.0,0.00027397,2]
[379176632,1755178247080,-400.0,0.00027397,2]
[379176633,1755178247089,-500.0,0.00027397,2]
[379176634,1755178247100,-1750.93,0.00027397,2]
[379176635,1755178247109,-887.478695,0.00027397,7]
[379176636,1755178247119,-169.82454236,0.00027397,2]
[379176637,1755178247128,-887.478695,0.00027397,7]
[379176638,1755178247138,-3922.65,0.00027397,2]
[379176639,1755178247148,-400.0,0.00027397,2]
[379176640,1755178247157,-10740.15,0.00027397,2]
[379176641,1755178247167,-400.0,0.00027397,2]
[379176642,1755178247177,-4499.22,0.00027397,2]
[379176643,1755178247187,-887.478695,0.00027397,7]
[379176644,1755178247197,-887.478695,0.00027397,7]
[379176645,1755178247207,-158.31371085,0.00027397,2]
[379176646,1755178247216,-953.3,0.00027397,2]
[379176647,1755178247226,-611.7,0.00027397,2]
[379176648,1755178247239,-400.0,0.00027397,2]
[379176649,1755178247248,-6159.62,0.00027397,2]
[379176650,1755178247258,-4540.75,0.00027397,2]
[379176651,1755178247268,-400.0,0.00027397,2]
[379176652,1755178247278,-491.67636583,0.00027397,2]
[379176653,1755178247288,-12050.09,0.00027397,2]
[379176654,1755178247297,-500.0,0.00027397,2]
[379176655,1755178247307,-3118.4,0.00027397,2]
[379176656,1755178247316,-5631.55,0.00027397,2]
[379176657,1755178247326,-150.0,0.00027397,2]
[379176658,1755178247336,-425.3487449,0.00027397,2]
[379176659,1755178247346,-4496.18,0.00027397,2]
[379176660,1755178247356,-500.0,0.00027397,2]
[379176661,1755178247366,-400.0,0.00027397,2]
[379176662,1755178247376,-500.0,0.00027397,2]
[379176663,1755178247387,-5882.32,0.00027397,2]
[379176664,1755178247396,-4723.93,0.00027397,2]
[379176665,1755178247406,-400.0,0.00027397,2]
[379176666,1755178247416,-2970.95,0.00027397,2]
[379176667,1755178247426,-2884.88,0.00027397,2]
[379176668,1755178247436,-8662.07,0.00027397,2]
[379176669,1755178247445,-1005.01,0.00027397,2]
[379176670,1755178247455,-400.0,0.00027397,2]
[379176671,1755178247464,-400.0,0.00027397,2]
[379176672,1755178247474,-2483.8,0.00027397,2]
[379176673,1755178247487,-10803.2,0.00027397,2]
[379176674,1755178247497,-500.0,0.00027397,2]
[379176675,1755178247507,-7789.46,0.00027397,2]
[379176676,1755178247517,-400.0,0.00027397,2]
[379176677,1755178247528,-6961.76,0.00027397,2]
[379176678,1755178247539,-21966.51,0.00027397,2]
[379176679,1755178247550,-3336.35,0.00027397,2]
[379176680,1755178247561,-4237.96,0.00027397,2]
[379176681,1755178247575,-400.0,0.00027397,2]
[379176682,1755178247586,-7391.83,0.00027397,2]
[379176683,1755178247597,-3031.34,0.00027397,2]
[379176684,1755178247609,-1944.84,0.00027397,2]
[379176685,1755178247621,-3770.52,0.00027397,2]
[379176686,1755178247632,-400.0,0.00027397,2]
[379176687,1755178247644,-5656.53,0.00027397,2]
[379176688,1755178247655,-9831.27,0.00027397,2]
[379176689,1755178247666,-150.0,0.00027397,2]
[379176690,1755178247678,-2326.63,0.00027397,2]
[379176691,1755178247689,-5789.05,0.00027397,2]
[379176692,1755178247701,-500.0,0.00027397,2]
[379176693,1755178247712,-400.0,0.00027397,2]
[379176694,1755178247723,-150.0,0.00027397,2]
[379176695,1755178247739,-935.0,0.00027397,2]
[379176696,1755178247754,-5175.57,0.00027397,2]
[379176697,1755178247764,-1454.11,0.00027397,2]
[379176698,1755178247775,-400.0,0.00027397,2]
[379176699,1755178247785,-662.0,0.00027397,2]
[379176700,1755178247796,-5665.64,0.00027397,2]
[379176701,1755178247807,-262.58351422,0.00027397,2]
[379176702,1755178247818,-3164.17,0.00027397,2]
[379176703,1755178247828,-798.01,0.00027397,2]
[379176704,1755178247839,-400.0,0.00027397,2]
[379176705,1755178247849,-4782.4,0.00027397,2]
[379176706,1755178247860,-400.0,0.00027397,2]
[379176707,1755178247870,-4826.88,0.00027397,2]
[379176708,1755178247880,-13682.35,0.00027397,2]
[379176709,1755178247890,-5473.1,0.00027397,2]
[379176710,1755178247901,-6828.46,0.00027397,2]